[Event "WJCC U20 Girls 2019"]
[Site "New Delhi"]
[Date "2019.10.16"]
[Round "2.45"]
[White "Yaakub, Nov Genevia Pslam"]
[Black "Onur, Cigdem"]
[Result "0-1"]
[ECO "B43"]
[WhiteElo "1316"]
[BlackElo "1913"]
[Annotator "NA"]
[PlyCount "100"]
[EventDate "2019.10.15"]
[EventType "swiss"]
[EventCountry "IND"]
[SourceTitle "playchess.com"]
[Source "ChessBase"]
[SourceQuality "1"]
[TimeControl "40/5400+30:1800+30"]

1. e4 {[%emt 0:00:00]} c5 {[%emt 0:00:00]} 2. Nf3 {[%emt 0:00:00]} e6 {[%emt 0:00:00]} 3. d4 {[%emt 0:00:15]} cxd4 {[%emt 0:00:00]} 4. Nxd4 {[%emt 0:00:14]} a6 {[%emt 0:00:00]} 5. Nc3 {[%emt 0:00:35]} Qc7 {[%emt 0:00:07]} 6. Be3 {[%emt 0:01:29]} Nf6 {[%emt 0:00:42]} 7. Bd3 {[%emt 0:02:30]} Be7 {[%emt 0:01:42]} 8. O-O {[%emt 0:01:00]} d6 {[%emt 0:03:32]} 9. Qf3 {[%emt 0:05:18]} Nbd7 {[%emt 0:22:51]} 10. Qg3 {[%emt 0:11:17]} O-O {[%emt 0:29:11]} 11. Bh6 {[%emt 0:11:09]} Ne8 {[%emt 0:02:30]} 12. Rae1 {[%emt 0:17:18]} Ne5 {[%emt 0:15:51]} 13. Be3 {[%emt 0:07:21]} Qd8 {[%emt 0:08:06]} 14. Nf3 {[%emt 0:03:18]} Nxd3 {[%emt 0:06:03]} 15. cxd3 {[%emt 0:00:03]} e5 {[%emt 0:05:35]} 16. d4 {[%emt 0:02:41]} Nf6 {[%emt 0:01:00]} 17. dxe5 {[%emt 0:04:37]} Nh5 {[%emt 0:00:32]} 18. exd6 {[%emt 0:03:00]} Bf6 {[%emt 0:00:40]} 19. Nd5 {[%emt 0:03:30]} Nxg3 {[%emt 0:00:10]} 20. Nxf6+ {[%emt 0:00:17]} Qxf6 {[%emt 0:00:15]} 21. e5 {[%emt 0:00:17]} Qe6 {[%emt 0:00:50]} 22. hxg3 {[%emt 0:00:12]} Qxa2 {[%emt 0:00:30]} 23. Bd4 {[%emt 0:01:25]} Bg4 {[%emt 0:00:30]} 24. Nd2 {[%emt 0:00:53]} Qd5 {[%emt 0:00:31]} 25. Bc3 {[%emt 0:00:28]} Rac8 {[%emt 0:00:37]} 26. Ne4 {[%emt 0:02:18]} Qb5 {[%emt 0:00:35]} 27. f3 {[%emt 0:02:16]} Bf5 {[%emt 0:00:07]} 28. g4 {[%emt 0:03:04]} Bxe4 {[%emt 0:00:28]} 29. Rxe4 {[%emt 0:00:03]} Rc4 {[%emt 0:00:30]} 30. Ree1 {[%emt 0:01:18]} Qc5+ {[%emt 0:00:29]} 31. Kh1 {[%emt 0:00:17]} b5 {[%emt 0:00:23]} 32. b4 {[%emt 0:02:16]} Qc6 {[%emt 0:00:47]} 33. Bd2 {[%emt 0:00:46]} Qd5 {[%emt 0:00:34]} 34. Be3 {[%emt 0:02:42]} Qxe5 {[%emt 0:00:42]} 35. Bc5 {[%emt 0:00:46]} Rxc5 {[%emt 0:00:33]} 36. Rxe5 {[%emt 0:00:23]} Rxe5 {[%emt 0:00:03]} 37. Ra1 {[%emt 0:00:32]} Ra8 {[%emt 0:00:39]} 38. Rc1 {[%emt 0:00:14]} Rd5 {[%emt 0:00:29]} 39. Rc6 {[%emt 0:00:23]} Rd8 {[%emt 0:00:30]} 40. Rxa6 {[%emt 0:00:17]} R5xd6 {[%emt 0:00:03]} 41. Ra5 {[%emt 0:30:22]} Rb8 {[%emt 0:30:04]} 42. Ra1 {[%emt 0:00:41]} Rd4 {[%emt 0:00:13]} 43. Rb1 {[%emt 0:00:17]} Rc8 {[%emt 0:00:38]} 44. Kh2 {[%emt 0:00:27]} g6 {[%emt 0:00:06]} 45. Kg3 {[%emt 0:01:02]} Rcc4 {[%emt 0:00:03]} 46. Re1 {[%emt 0:00:35]} Rxb4 {[%emt 0:00:07]} 47. Re8+ {[%emt 0:00:20]} Kg7 {[%emt 0:00:01]} 48. Re5 {[%emt 0:00:15]} Rb1 {[%emt 0:00:10]} 49. Re2 {[%emt 0:00:25]} b4 {[%emt 0:00:05]} 50. Kf2 {[%emt 0:00:37]} Rd6 0-1

[Event "WJCC U20 Girls 2019"]
[Site "New Delhi"]
[Date "2019.10.16"]
[Round "2.46"]
[White "Mungunzul, Bat-Erdene"]
[Black "Abdala Cancino, Patricia Anastas"]
[Result "1-0"]
[ECO "D32"]
[WhiteElo "1912"]
[BlackElo "1608"]
[Annotator "NA"]
[PlyCount "89"]
[EventDate "2019.10.15"]
[EventType "swiss"]
[EventCountry "IND"]
[SourceTitle "playchess.com"]
[Source "ChessBase"]
[SourceQuality "1"]
[TimeControl "40/5400+30:1800+30"]

1. d4 {[%emt 0:00:00]} d5 {[%emt 0:00:00]} 2. c4 {[%emt 0:00:00]} e6 {[%emt 0:00:04]} 3. Nc3 {[%emt 0:00:00]} c5 {[%emt 0:00:23]} 4. Nf3 {[%emt 0:01:46]} Nc6 {[%emt 0:00:08]} 5. e3 {[%emt 0:00:26]} Nf6 {[%emt 0:00:33]} 6. Be2 {[%emt 0:01:38]} Be7 {[%emt 0:00:12]} 7. O-O {[%emt 0:00:13]} O-O {[%emt 0:00:10]} 8. dxc5 {[%emt 0:00:55]} Bxc5 {[%emt 0:00:38]} 9. a3 {[%emt 0:01:10]} Bb6 {[%emt 0:01:01]} 10. b4 {[%emt 0:03:03]} dxc4 {[%emt 0:05:18]} 11. Qxd8 {[%emt 0:04:23]} Rxd8 {[%emt 0:00:16]} 12. Bxc4 {[%emt 0:00:11]} Bc7 {[%emt 0:00:28]} 13. Nb5 {[%emt 0:02:00]} Bb8 {[%emt 0:00:23]} 14. Bb2 {[%emt 0:01:05]} a6 {[%emt 0:00:16]} 15. Nbd4 {[%emt 0:01:05]} Nxd4 {[%emt 0:01:44]} 16. Bxd4 {[%emt 0:00:12]} b5 {[%emt 0:00:28]} 17. Be2 {[%emt 0:02:20]} Ba7 {[%emt 0:02:06]} 18. a4 {[%emt 0:07:52]} Bxd4 {[%emt 0:01:05]} 19. Nxd4 {[%emt 0:00:12]} bxa4 {[%emt 0:00:38]} 20. Bf3 {[%emt 0:06:28]} Nd5 {[%emt 0:01:53]} 21. Rxa4 {[%emt 0:00:16]} Bb7 {[%emt 0:00:41]} 22. Rfa1 {[%emt 0:05:59]} Rab8 {[%emt 0:01:45]} 23. h3 {[%emt 0:02:39]} Rd6 {[%emt 0:02:15]} 24. Rc1 {[%emt 0:14:04]} Rb6 {[%emt 0:01:53]} 25. Rc4 {[%emt 0:01:30]} g6 {[%emt 0:02:55]} 26. Kh2 {[%emt 0:01:46]} Kg7 {[%emt 0:01:20]} 27. Kg3 {[%emt 0:05:34]} Rd6 {[%emt 0:03:21]} 28. Ra5 {[%emt 0:05:26]} Nb6 {[%emt 0:03:16]} 29. Rc7 {[%emt 0:04:29]} Bxf3 {[%emt 0:08:58]} 30. Nxf3 {[%emt 0:00:53]} Nd5 {[%emt 0:00:20]} 31. Ra7 {[%emt 0:00:09]} Nxb4 {[%emt 0:02:02]} 32. Ng5 {[%emt 0:00:52]} Rf8 {[%emt 0:00:34]} 33. Rc5 {[%emt 0:01:00]} h6 {[%emt 0:00:49]} 34. Nf3 {[%emt 0:03:05]} Nd3 {[%emt 0:09:59]} 35. Rcc7 {[%emt 0:00:36]} Kf6 {[%emt 0:02:56]} 36. Nd2 {[%emt 0:00:37]} Nxf2 {[%emt 0:02:49]} 37. Nc4 {[%emt 0:00:13]} Nh1+ {[%emt 0:00:40]} 38. Kh2 {[%emt 0:00:08]} Rd1 {[%emt 0:00:16]} 39. Nb6 {[%emt 0:00:09]} Rfd8 {[%emt 0:04:59]} 40. Rxf7+ {[%emt 0:00:33]} Kg5 {[%emt 0:00:07]} 41. Rxa6 {[%emt 0:35:09]} h5 {[%emt 0:30:25]} 42. Ra4 {[%emt 0:02:35]} Rc1 {[%emt 0:03:30]} 43. h4+ {[%emt 0:01:20]} Kh6 {[%emt 0:00:27]} 44. Raa7 {[%emt 0:00:05]} g5 {[%emt 0:00:47]} 45. Rf6# {[%emt 0:00:09]} 1-0

[Event "WJCC U20 Girls 2019"]
[Site "New Delhi"]
[Date "2019.10.16"]
[Round "2.47"]
[White "Ananya, Suresh"]
[Black "Djuric, Anja"]
[Result "1-0"]
[ECO "B18"]
[WhiteElo "1896"]
[BlackElo "1493"]
[Annotator "NA"]
[PlyCount "109"]
[EventDate "2019.10.15"]
[EventType "swiss"]
[EventCountry "IND"]
[SourceTitle "playchess.com"]
[Source "ChessBase"]
[SourceQuality "1"]
[TimeControl "40/5400+30:1800+30"]

1. e4 {[%emt 0:00:00]} c6 {[%emt 0:00:00]} 2. d4 {[%emt 0:00:00]} d5 {[%emt 0:00:00]} 3. Nd2 {[%emt 0:00:11]} dxe4 {[%emt 0:00:02]} 4. Nxe4 {[%emt 0:00:16]} Bf5 {[%emt 0:00:21]} 5. Ng3 {[%emt 0:00:09]} Bg6 {[%emt 0:00:15]} 6. h3 {[%emt 0:00:24]} h5 {[%emt 0:00:41]} 7. Nf3 {[%emt 0:01:47]} e6 {[%emt 0:01:38]} 8. Bd3 {[%emt 0:01:22]} Bxd3 {[%emt 0:01:28]} 9. Qxd3 {[%emt 0:02:13]} Nf6 {[%emt 0:04:00]} 10. Bd2 {[%emt 0:00:26]} Nbd7 {[%emt 0:01:00]} 11. O-O-O {[%emt 0:01:08]} Qc7 {[%emt 0:00:32]} 12. Ne4 {[%emt 0:00:59]} O-O-O {[%emt 0:01:31]} 13. Neg5 {[%emt 0:02:59]} Nc5 {[%emt 0:13:58]} 14. Qe2 {[%emt 0:00:37]} Na4 {[%emt 0:00:28]} 15. Qc4 {[%emt 0:03:50]} b5 {[%emt 0:02:29]} 16. Qb3 {[%emt 0:00:35]} Bd6 {[%emt 0:02:30]} 17. g3 {[%emt 0:00:46]} Ng4 {[%emt 0:05:29]} 18. Rhf1 {[%emt 0:00:24]} Rhf8 {[%emt 0:11:41]} 19. c4 {[%emt 0:01:03]} e5 {[%emt 0:00:42]} 20. c5 {[%emt 0:00:30]} Be7 {[%emt 0:00:28]} 21. Nxf7 {[%emt 0:00:30]} Rd5 {[%emt 0:01:35]} 22. N7xe5 {[%emt 0:08:23]} Nxe5 {[%emt 0:01:49]} 23. Nxe5 {[%emt 0:00:04]} Nxc5 {[%emt 0:02:16]} 24. Qe3 {[%emt 0:00:34]} Ne6 {[%emt 0:02:45]} 25. Ng6 {[%emt 0:07:48]} Rf6 {[%emt 0:00:34]} 26. Nxe7+ {[%emt 0:02:13]} Qxe7 {[%emt 0:00:13]} 27. Qe4 {[%emt 0:00:18]} Qd7 {[%emt 0:01:35]} 28. Be3 {[%emt 0:03:31]} Rf8 {[%emt 0:05:16]} 29. Rd2 {[%emt 0:00:49]} Re8 {[%emt 0:00:42]} 30. Qc2 {[%emt 0:00:45]} Kb7 {[%emt 0:01:04]} 31. Rfd1 {[%emt 0:00:21]} Rd8 {[%emt 0:01:43]} 32. Kb1 {[%emt 0:02:25]} a6 {[%emt 0:01:19]} 33. Qc3 {[%emt 0:01:01]} Rc8 {[%emt 0:01:49]} 34. Rd3 {[%emt 0:02:14]} Kb6 {[%emt 0:02:35]} 35. f3 {[%emt 0:02:53]} Kb7 {[%emt 0:00:51]} 36. Bf2 {[%emt 0:06:23]} Qf7 {[%emt 0:02:28]} 37. Qe1 {[%emt 0:00:54]} Qf5 {[%emt 0:08:05]} 38. Qe4 {[%emt 0:01:21]} Rcd8 {[%emt 0:02:31]} 39. Re1 {[%emt 0:02:34]} Nc7 {[%emt 0:02:34]} 40. Qxf5 {[%emt 0:01:06]} Rxf5 {[%emt 0:00:07]} 41. Re7 {[%emt 0:30:16]} g6 {[%emt 0:30:31]} 42. Rg7 {[%emt 0:01:31]} Rf6 {[%emt 0:00:53]} 43. Be1 {[%emt 0:01:46]} Kc8 {[%emt 0:00:58]} 44. Ba5 {[%emt 0:00:51]} Rd7 {[%emt 0:00:25]} 45. Rxd7 {[%emt 0:00:17]} Kxd7 {[%emt 0:00:08]} 46. Bxc7 {[%emt 0:00:04]} Kxc7 {[%emt 0:00:09]} 47. Kc2 {[%emt 0:00:18]} Kd6 48. Re3 {[%emt 0:00:29]} Kd5 {[%emt 0:01:59]} 49. Kd3 {[%emt 0:00:11]} a5 {[%emt 0:00:36]} 50. Re5+ {[%emt 0:00:10]} Kd6 {[%emt 0:00:20]} 51. Ke4 {[%emt 0:00:07]} Rf8 {[%emt 0:00:35]} 52. f4 {[%emt 0:00:15]} Rg8 {[%emt 0:01:14]} 53. Kf3 {[%emt 0:00:58]} a4 {[%emt 0:00:26]} 54. f5 {[%emt 0:00:25]} g5 {[%emt 0:02:23]} 55. f6 {[%emt 0:00:06]} 1-0

[Event "WJCC U20 Girls 2019"]
[Site "New Delhi"]
[Date "2019.10.17"]
[Round "3.1"]
[White "Alinasab, Mobina"]
[Black "Berdnyk, Mariia"]
[Result "1-0"]
[ECO "B76"]
[WhiteElo "2239"]
[BlackElo "2349"]
[Annotator "ChessBase"]
[PlyCount "71"]
[EventDate "2019.10.15"]
[EventType "swiss"]
[EventCountry "IND"]
[SourceTitle "playchess.com"]
[Source "ChessBase"]
[SourceQuality "1"]
[TimeControl "40/5400+30:1800+30"]

1. e4 {[%emt 0:00:00]} c5 {[%emt 0:00:00]} 2. Nf3 {[%emt 0:00:00]} d6 {[%emt 0:00:00]} 3. d4 {[%emt 0:00:00]} cxd4 {[%emt 0:00:00]} 4. Nxd4 {[%emt 0:00:00]} Nf6 {[%emt 0:00:00]} 5. Nc3 {[%emt 0:00:00]} g6 {[%emt 0:00:00]} 6. Be3 {[%emt 0:00:00]} Bg7 {[%emt 0:00:00]} 7. f3 {[%emt 0:00:00]} O-O {[%emt 0:00:00]} 8. Qd2 {[%emt 0:00:00]} Nc6 {[%emt 0:00:05]} 9. O-O-O {[%emt 0:00:00]} d5 {[%emt 0:00:04]} 10. exd5 {[%emt 0:00:00]} Nxd5 {[%emt 0:00:49]} 11. Nxc6 {[%emt 0:00:02]} bxc6 {[%emt 0:00:05]} 12. Bd4 {[%emt 0:00:02]} Bxd4 {[%emt 0:03:04]} 13. Qxd4 {[%emt 0:00:06]} Qb6 {[%emt 0:02:45]} 14. Na4 {[%emt 0:00:07]} Qa5 {[%emt 0:01:25]} 15. b3 {[%emt 0:00:09]} Qc7 {[%emt 0:00:30]} 16. h4 {[%emt 0:03:13]} e5 {[%emt 0:04:55]} 17. Qc5 {[%emt 0:15:45]} Be6 {[%emt 0:02:24]} 18. h5 {[%emt 0:01:54]} g5 {[%emt 0:04:31]} 19. Bc4 {[%emt 0:06:01]} f6 {[%emt 0:08:20]} 20. Rhe1 {[%emt 0:29:02]} Bf7 {[%emt 0:11:45]} 21. h6 {[%emt 0:01:04]} Rad8 {[%emt 0:00:30]} 22. Bxd5 {[%emt 0:00:30]} Bxd5 {[%emt 0:00:37]} 23. Rd2 {[%emt 0:03:32]} Rd7 {[%emt 0:06:19]} 24. c4 {[%emt 0:05:54]} Be6 {[%emt 0:12:44]} 25. Rxd7 {[%emt 0:00:24]} Bxd7 {[%emt 0:01:26]} 26. Rd1 {[%emt 0:00:40]} Be8 {[%emt 0:00:48]} 27. Nc3 {[%emt 0:04:18]} Bg6 {[%emt 0:14:09]} 28. Nd5 {[%emt 0:03:52]} Qf7 {[%emt 0:02:00]} 29. Ne7+ {[%emt 0:02:04]} Kh8 {[%emt 0:00:01]} 30. Nxg6+ {[%emt 0:12:22]} hxg6 {[%emt 0:00:05]} 31. Rd7 {[%emt 0:00:19]} Qxd7 {[%emt 0:01:04]} 32. Qxf8+ {[%emt 0:00:07]} Kh7 {[%emt 0:00:03]} 33. b4 {[%emt 0:07:10]} f5 {[%emt 0:04:58]} 34. b5 {[%emt 0:02:09]} c5 {[%emt 0:04:20]} 35. a4 {[%emt 0:00:50]} e4 {[%emt 0:00:09]} 36. fxe4 {[%emt 0:00:12]} 1-0

[Event "WJCC U20 Girls 2019"]
[Site "New Delhi"]
[Date "2019.10.17"]
[Round "3.2"]
[White "Dordzhieva, Dinara"]
[Black "Priyanka Nutakki"]
[Result "0-1"]
[ECO "E06"]
[WhiteElo "2335"]
[BlackElo "2248"]
[Annotator "ChessBase"]
[PlyCount "82"]
[EventDate "2019.10.15"]
[EventType "swiss"]
[EventCountry "IND"]
[SourceTitle "playchess.com"]
[Source "ChessBase"]
[SourceQuality "1"]
[TimeControl "40/5400+30:1800+30"]

1. Nf3 {[%emt 0:01:08]} d5 {[%emt 0:00:01]} 2. d4 {[%emt 0:00:05]} Nf6 {[%emt 0:00:31]} 3. c4 {[%emt 0:00:05]} e6 {[%emt 0:00:07]} 4. g3 {[%emt 0:00:10]} Be7 {[%emt 0:00:18]} 5. Bg2 {[%emt 0:00:08]} O-O {[%emt 0:00:07]} 6. O-O {[%emt 0:00:05]} dxc4 {[%emt 0:00:09]} 7. Ne5 {[%emt 0:00:04]} Nc6 {[%emt 0:00:23]} 8. Nxc6 {[%emt 0:00:09]} bxc6 {[%emt 0:00:05]} 9. Na3 {[%emt 0:00:03]} Bxa3 {[%emt 0:10:39]} 10. bxa3 {[%emt 0:00:13]} Ba6 {[%emt 0:00:44]} 11. Qd2 {[%emt 0:00:27]} Rb8 {[%emt 0:00:10]} 12. Qa5 {[%emt 0:00:24]} Rb6 {[%emt 0:00:06]} 13. a4 {[%emt 0:00:31]} Qc8 {[%emt 0:03:37]} 14. Ba3 {[%emt 0:01:17]} Rd8 {[%emt 0:02:20]} 15. Rab1 {[%emt 0:00:07]} Qb7 {[%emt 0:08:13]} 16. Rbc1 {[%emt 0:16:26]} Rd6 17. d5 Rxd5 {[%emt 0:15:46]} 18. Bb4 Rd4 19. Bc5 {[%emt 0:03:02]} Rd7 {[%emt 0:03:37]} 20. Bxb6 {[%emt 0:00:29]} cxb6 {[%emt 0:00:08]} 21. Qc3 {[%emt 0:04:08]} Nd5 {[%emt 0:05:55]} 22. Qc2 {[%emt 0:04:00]} h6 {[%emt 0:04:16]} 23. Rfd1 {[%emt 0:02:32]} Qc7 {[%emt 0:01:18]} 24. a3 {[%emt 0:03:24]} b5 {[%emt 0:07:24]} 25. Rb1 {[%emt 0:12:27]} Qb6 {[%emt 0:10:08]} 26. e4 {[%emt 0:16:50]} Nf6 {[%emt 0:00:15]} 27. Rxd7 {[%emt 0:00:09]} Nxd7 {[%emt 0:00:01]} 28. axb5 {[%emt 0:00:14]} cxb5 {[%emt 0:01:00]} 29. a4 {[%emt 0:00:04]} b4 {[%emt 0:09:59]} 30. Qb2 {[%emt 0:21:37]} c3 {[%emt 0:02:16]} 31. Qc2 {[%emt 0:02:53]} Ne5 {[%emt 0:00:47]} 32. Rd1 {[%emt 0:00:36]} Bd3 {[%emt 0:01:52]} 33. Rxd3 {[%emt 0:03:12]} Nxd3 {[%emt 0:00:02]} 34. Qxd3 {[%emt 0:00:15]} b3 {[%emt 0:00:21]} 35. e5 {[%emt 0:00:16]} c2 {[%emt 0:01:05]} 36. Qc3 {[%emt 0:01:00]} Qd8 {[%emt 0:00:51]} 37. Bf1 {[%emt 0:06:42]} Qd1 {[%emt 0:00:36]} 38. Qxb3 {[%emt 0:01:15]} c1=Q {[%emt 0:00:20]} 39. Qb8+ {[%emt 0:00:03]} Kh7 {[%emt 0:00:05]} 40. Qb5 {[%emt 0:00:03]} Qcc2 {[%emt 0:00:56]} 41. a5 {[%emt 0:30:38]} Qe1 {[%emt 0:30:15]} 0-1

[Event "WJCC U20 Girls 2019"]
[Site "New Delhi"]
[Date "2019.10.17"]
[Round "3.3"]
[White "Mrudul Dehankar"]
[Black "Rakshitta Ravi"]
[Result "1/2-1/2"]
[ECO "A45"]
[WhiteElo "2227"]
[BlackElo "2310"]
[Annotator "ChessBase"]
[PlyCount "67"]
[EventDate "2019.10.15"]
[EventType "swiss"]
[EventCountry "IND"]
[SourceTitle "playchess.com"]
[Source "ChessBase"]
[SourceQuality "1"]
[TimeControl "40/5400+30:1800+30"]

1. d4 {[%emt 0:00:00]} Nf6 {[%emt 0:00:10]} 2. Bf4 {[%emt 0:00:00]} g6 {[%emt 0:00:11]} 3. Nc3 {[%emt 0:00:11]} d5 {[%emt 0:00:07]} 4. e3 {[%emt 0:00:15]} Bg7 {[%emt 0:00:20]} 5. h4 {[%emt 0:00:12]} c5 {[%emt 0:01:29]} 6. dxc5 {[%emt 0:04:17]} Nc6 {[%emt 0:02:20]} 7. Bb5 {[%emt 0:03:18]} O-O {[%emt 0:02:58]} 8. Bxc6 {[%emt 0:04:49]} bxc6 {[%emt 0:00:11]} 9. Be5 {[%emt 0:00:51]} h5 {[%emt 0:10:30]} 10. Qd4 {[%emt 0:10:04]} Bh6 {[%emt 0:08:46]} 11. Bf4 {[%emt 0:13:24]} Bg7 {[%emt 0:00:24]} 12. Be5 {[%emt 0:08:39]} Re8 {[%emt 0:01:04]} 13. Nf3 {[%emt 0:03:35]} Bf8 {[%emt 0:04:56]} 14. Qa4 {[%emt 0:14:56]} Bd7 {[%emt 0:09:45]} 15. Rd1 {[%emt 0:19:01]} Qc8 {[%emt 0:09:38]} 16. e4 {[%emt 0:05:04]} dxe4 {[%emt 0:08:25]} 17. Nxe4 {[%emt 0:00:30]} Bg4 {[%emt 0:14:38]} 18. Neg5 {[%emt 0:05:35]} Qf5 {[%emt 0:04:29]} 19. O-O {[%emt 0:01:27]} Nd7 {[%emt 0:01:21]} 20. Bg3 {[%emt 0:01:18]} Nxc5 {[%emt 0:02:40]} 21. Qc4 {[%emt 0:00:59]} Ne6 {[%emt 0:05:31]} 22. Nd4 {[%emt 0:01:40]} Nxd4 {[%emt 0:00:26]} 23. Rxd4 {[%emt 0:00:03]} e5 {[%emt 0:00:32]} 24. Re4 {[%emt 0:00:53]} Qd7 {[%emt 0:03:48]} 25. Rxe5 {[%emt 0:00:52]} Bg7 {[%emt 0:01:36]} 26. Ree1 {[%emt 0:00:33]} Qd5 {[%emt 0:01:01]} 27. Qxd5 {[%emt 0:00:31]} cxd5 {[%emt 0:00:02]} 28. f3 {[%emt 0:00:25]} Bf5 {[%emt 0:00:01]} 29. c3 {[%emt 0:00:11]} d4 {[%emt 0:02:03]} 30. Rxe8+ {[%emt 0:00:48]} Rxe8 {[%emt 0:00:02]} 31. Re1 {[%emt 0:00:07]} Rd8 {[%emt 0:02:33]} 32. cxd4 {[%emt 0:00:49]} Bxd4+ {[%emt 0:00:07]} 33. Bf2 {[%emt 0:00:06]} Bxb2 {[%emt 0:00:41]} 34. Re2 {[%emt 0:01:03]} 1/2-1/2

[Event "WJCC U20 Girls 2019"]
[Site "New Delhi"]
[Date "2019.10.17"]
[Round "3.4"]
[White "Cervantes Landeiro, Thalia"]
[Black "Altantuya, Boldbaatar"]
[Result "0-1"]
[ECO "A40"]
[WhiteElo "2176"]
[BlackElo "2277"]
[Annotator "ChessBase"]
[PlyCount "60"]
[EventDate "2019.10.15"]
[EventType "swiss"]
[EventCountry "IND"]
[SourceTitle "playchess.com"]
[Source "ChessBase"]
[SourceQuality "1"]
[TimeControl "40/5400+30:1800+30"]

1. d4 {[%emt 0:00:00]} e6 {[%emt 0:00:00]} 2. c4 {[%emt 0:00:00]} b6 {[%emt 0:00:03]} 3. e4 {[%emt 0:00:45]} Bb7 {[%emt 0:00:24]} 4. Bd3 {[%emt 0:01:14]} Nf6 {[%emt 0:01:35]} 5. Nc3 {[%emt 0:04:17]} Bb4 {[%emt 0:02:09]} 6. f3 {[%emt 0:04:47]} c5 7. a3 {[%emt 0:06:53]} Bxc3+ {[%emt 0:10:24]} 8. bxc3 {[%emt 0:00:08]} d6 {[%emt 0:01:29]} 9. Bg5 {[%emt 0:05:27]} Nbd7 {[%emt 0:01:03]} 10. f4 {[%emt 0:05:46]} Qc7 {[%emt 0:09:55]} 11. Qe2 {[%emt 0:03:48]} cxd4 {[%emt 0:01:58]} 12. cxd4 {[%emt 0:00:28]} b5 {[%emt 0:00:23]} 13. Rc1 {[%emt 0:26:15]} Qa5+ {[%emt 0:01:32]} 14. Kf2 {[%emt 0:03:35]} Qxa3 {[%emt 0:03:04]} 15. Nf3 {[%emt 0:06:45]} bxc4 {[%emt 0:01:44]} 16. Bc2 {[%emt 0:02:22]} Qa6 {[%emt 0:13:03]} 17. Ra1 {[%emt 0:03:07]} Qc6 {[%emt 0:04:37]} 18. Bxf6 {[%emt 0:02:27]} gxf6 {[%emt 0:00:12]} 19. Rhc1 {[%emt 0:03:11]} Ke7 {[%emt 0:04:09]} 20. Nd2 {[%emt 0:07:03]} Rhc8 {[%emt 0:06:12]} 21. Ba4 {[%emt 0:03:00]} Qb6 {[%emt 0:00:49]} 22. Rxc4 {[%emt 0:03:10]} Ba6 {[%emt 0:02:05]} 23. Rxc8 {[%emt 0:03:18]} Bxe2 {[%emt 0:09:02]} 24. Rxa8 {[%emt 0:00:08]} Qxd4+ {[%emt 0:00:10]} 25. Kxe2 {[%emt 0:00:11]} Qxa1 {[%emt 0:00:07]} 26. Rxa7 {[%emt 0:00:08]} Kf8 {[%emt 0:00:04]} 27. Rxd7 {[%emt 0:03:29]} Qxa4 {[%emt 0:00:06]} 28. Rxd6 {[%emt 0:00:05]} f5 {[%emt 0:03:20]} 29. Ke3 {[%emt 0:01:31]} Qa7+ {[%emt 0:00:29]} 30. Kf3 {[%emt 0:00:42]} Qa3+ {[%emt 0:00:04]} 0-1

[Event "WJCC U20 Girls 2019"]
[Site "New Delhi"]
[Date "2019.10.17"]
[Round "3.5"]
[White "Arpita, Mukherjee"]
[Black "Avetisyan, Mariam"]
[Result "1-0"]
[ECO "C03"]
[WhiteElo "2271"]
[BlackElo "2110"]
[Annotator "ChessBase"]
[PlyCount "73"]
[EventDate "2019.10.15"]
[EventType "swiss"]
[EventCountry "IND"]
[SourceTitle "playchess.com"]
[Source "ChessBase"]
[SourceQuality "1"]
[TimeControl "40/5400+30:1800+30"]

1. e4 {[%emt 0:00:44]} e6 {[%emt 0:00:00]} 2. d4 {[%emt 0:01:30]} d5 {[%emt 0:00:00]} 3. Nd2 {[%emt 0:00:15]} Be7 {[%emt 0:00:00]} 4. Ngf3 {[%emt 0:00:27]} Nf6 {[%emt 0:00:00]} 5. e5 {[%emt 0:00:43]} Nfd7 {[%emt 0:00:07]} 6. Bd3 {[%emt 0:00:30]} c5 {[%emt 0:00:06]} 7. c3 {[%emt 0:00:37]} Nc6 {[%emt 0:00:08]} 8. O-O {[%emt 0:00:23]} a5 {[%emt 0:00:11]} 9. a4 {[%emt 0:00:40]} cxd4 {[%emt 0:00:15]} 10. cxd4 {[%emt 0:00:44]} Nb4 {[%emt 0:00:13]} 11. Bb5 {[%emt 0:02:20]} O-O {[%emt 0:04:17]} 12. Nb1 {[%emt 0:01:55]} Nb6 {[%emt 0:06:43]} 13. Nc3 {[%emt 0:00:44]} Bd7 {[%emt 0:00:45]} 14. Ne1 {[%emt 0:09:34]} Rc8 {[%emt 0:19:30]} 15. f4 {[%emt 0:11:19]} g6 {[%emt 0:04:01]} 16. Rf3 {[%emt 0:01:55]} f6 {[%emt 0:09:47]} 17. exf6 {[%emt 0:07:28]} Bxf6 {[%emt 0:00:19]} 18. Rh3 {[%emt 0:01:54]} Nc6 {[%emt 0:06:21]} 19. Bxc6 {[%emt 0:15:48]} bxc6 {[%emt 0:00:55]} 20. Rg3 {[%emt 0:01:53]} Qc7 {[%emt 0:08:40]} 21. Qd3 {[%emt 0:07:13]} c5 {[%emt 0:07:58]} 22. dxc5 {[%emt 0:02:38]} Qxc5+ {[%emt 0:00:07]} 23. Be3 {[%emt 0:00:24]} d4 {[%emt 0:07:19]} 24. Ne4 {[%emt 0:01:02]} dxe3 {[%emt 0:08:16]} 25. Nxc5 {[%emt 0:01:12]} Rxc5 {[%emt 0:00:03]} 26. Qxe3 {[%emt 0:05:36]} Rd5 {[%emt 0:03:43]} 27. Nf3 {[%emt 0:01:16]} Bxb2 {[%emt 0:04:02]} 28. Rb1 {[%emt 0:03:43]} Nxa4 {[%emt 0:00:59]} 29. Rg5 {[%emt 0:00:34]} Rff5 {[%emt 0:05:53]} 30. Rxf5 {[%emt 0:00:10]} gxf5 {[%emt 0:00:03]} 31. Qa7 {[%emt 0:01:37]} Ba3 {[%emt 0:01:44]} 32. Qc7 {[%emt 0:03:58]} h6 {[%emt 0:01:50]} 33. h3 {[%emt 0:01:55]} Bb4 {[%emt 0:01:29]} 34. Ne5 {[%emt 0:00:26]} Nc5 {[%emt 0:00:16]} 35. Qd8+ {[%emt 0:00:11]} Kh7 {[%emt 0:00:43]} 36. Qe7+ {[%emt 0:00:09]} Kh8 {[%emt 0:00:14]} 37. Qf6+ {[%emt 0:00:11]} 1-0